Cogmind - Beta 16.1 @@@ ROGUE MODE // 2026.04.01 @ 11:19:20 Player: Rainbow Dash Result: Destroyed self with Grenade Launcher Performance ------------- Evolutions (0) 0 Regions Visited (2) 400 Robots Destroyed (19) 95 Value Destroyed (454) 454 Prototype IDs (0) 0 Alien Tech Used (0) 0 Bonus (-45) -45 TOTAL SCORE: 904 Bonus ------- Friendly Fire -45 Cogmind --------- Core Integrity 0/250 Matter 68/300 Energy 200/200 System Corruption 0% Temperature Cool (6) Movement Walking (120) Location -10/Subcaves Parts ------- > --- POWER (1) -------- Subdweller Power Source > --- PROPULSION (2) --- Carbon-fiber Leg > --- UTILITY (2) ------ Disposable Heat Sink > --- WEAPON (2) ------- Subdweller Machine Gun Grenade Launcher > --- INVENTORY (5) ---- (None) Peak State ------------ > --- POWER ------------ Ion Engine > --- PROPULSION ------- Carbon-fiber Leg Carbon-fiber Leg > --- UTILITY ---------- Disposable Heat Sink > --- WEAPON ----------- Assault Rifle Subdweller Machine Gun > --- INVENTORY -------- Subdweller Power Source Carbon-fiber Leg Subdweller Laser Subdweller Machine Gun Grenade Launcher [Rating: 13] Favorites ----------- Power Light Ion Engine Engine Light Ion Engine Propulsion Light Treads Treads Light Treads Leg Carbon-fiber Leg Utility Disposable Heat Sink Device Disposable Heat Sink Storage Small Storage Unit Protection Scrap Shield Weapon Light Cannon Energy Gun Small Laser Ballistic Gun Assault Rifle Ballistic Cannon Light Cannon Launcher Grenade Launcher Build | -11 -10 -10 ------- Run | Yrd Mat Sub Slots Evolved . | . . . Power . | . . . Propulsion . | . . . Utility . | . . . Weapon . | . . . Parts Attached 22 | 6 5 11 Power 3 | 1 . 2 Engine 3 | 1 . 2 Core . | . . . Reactor . | . . . Propulsion 5 | 2 . 3 Treads 2 | 2 . . Leg 3 | . . 3 Wheel . | . . . Hover . | . . . Flight . | . . . Utility 5 | 1 2 2 Device 2 | . 1 1 Storage 2 | 1 1 . Processor . | . . . Hackware . | . . . Protection 1 | . . 1 Artifact . | . . . Weapon 9 | 2 3 4 Energy Gun 2 | 1 . 1 Energy Cannon . | . . . Ballistic Gun 4 | 1 . 3 Ballistic Cannon 2 | . 2 . Launcher 1 | . 1 . Special Weapon . | . . . Impact Weapon . | . . . Slashing Weapon . | . . . Piercing Weapon . | . . . Special Melee Weapon . | . . . Unidentified Prototypes . | . . . Parts Lost 10 | . . 10 Power 2 | . . 2 Propulsion 3 | . . 3 Utility 1 | . . 1 Weapon 4 | . . 4 Highest Loss Streak 6 | . . 6 To Critical Strikes 1 | . . 1 Average Backups 4 | 1 4 4 Power . | . 1 . Propulsion . | . . . Utility . | . . . Weapon 3 | . 3 2 Tool/Special . | . . . Unused Backups 2 | . . 2 Power 1 | . . 1 Propulsion . | . . . Utility . | . . . Weapon 1 | . . 1 Tool/Special . | . . . Average Slot Usage (%) 86 | . 95 82 Engine 13 | . 14 13 Treads 16 | . 28 10 Leg 11 | . . 17 Device 8 | . 9 8 Storage 4 | . 14 . Protection 2 | . . 3 Ballistic Gun 11 | . 1 17 Ballistic Cannon 14 | . 24 10 Peak Build Rating 13 | 6 7 13 Average Rating 9 | 4 6 10 On Entrance 4 | . 6 7 Avg Prop Armor Cover (%) 7 | . . 7 Naked Turns . | . . . Heaviest Build 27 | 11 15 27 Greatest Support 40 | 40 40 40 Greatest Overweight (x) 3 | 3 . . Average Overweight (x) . | . . . Largest Inventory Capacity 8 | 8 8 8 Average Capacity 6 | 7 8 5 Most Carried 6 | 2 6 5 Average Carried 4 | 1 4 4 Final Capacity 8 | 8 8 5 Final Carried 5 | 2 5 . Class Distribution -------------------- 61% | Mutant 38% | Scavenger-Mutant Dominant Class ---------------- Mutant | -10/Materials Scavenger-Mutant | -10/Subcaves Resources | -11 -10 -10 ----------- Run | Yrd Mat Sub Matter Collected 599 | 260 60 279 Remotely . | . . . Salvage Created 354 | . 14 340 Parts 26 | . 2 24 Haulers Intercepted . | . . . Recyclers Shooed . | . . . Parts Field Recycled . | . . . Retrieved Matter . | . . . Parts Self-Destructed 9 | . . 9 Prevented . | . . . Parts Restored . | . . . Kills | -11 -10 -10 ------- Run | Yrd Mat Sub Combat Hostiles Destroyed 19 | . 3 16 Guns 4 | . . 4 Cannons 5 | . . 5 AOE 10 | . 3 7 Classes Destroyed 3 | . 1 2 Swarmer 10 | . 3 7 Grunt 1 | . . 1 Subdweller 8 | . . 8 Best Kill Streak 5 | . 3 5 Combat Bots Only 5 | . 3 5 Max Kills in Single Turn 2 | . 2 2 Gunslinging . | . . . Exploded 2 | . 2 2 Melee . | . . . Uniques/NPCs Destroyed . | . . . Combat | -11 -10 -10 -------- Run | Yrd Mat Sub Hostile Shots Fired 93 | . 3 90 Missed 34 | . 2 32 Hits 59 | . 1 58 Projectile 59 | . 1 58 AOE 8 | . . 8 Critical Strikes 2 | . . 2 Damage Taken 1656 | . 79 1577 Core 261 | . . 261 Absorbed by Shields . | . . . Core Remaining (%) 100 | 100 . . Volleys Fired 52 | . 3 49 Largest 2 | . 2 2 Hottest 60 | . 60 60 Shots Fired 94 | . 4 90 Gun 39 | . . 39 Cannon 45 | . 2 43 Launcher 10 | . 2 8 Special . | . . . Kinetic 84 | . 2 82 Thermal . | . . . Explosive 10 | . 2 8 Electromagnetic . | . . . Robot Hit Streak 17 | . 2 17 Robot Miss Streak 3 | . 2 3 Penetration Max . | . . . Secondary Targets . | . . . Shots Hit Robots 75 | . 2 73 Core Hits 27 | . 3 24 Critical Kills . | . . . Critical Parts Destroyed . | . . . Critical Strikes 4 | . . 4 Blast 4 | . . 4 Melee Attacks . | . . . Impact . | . . . Slashing . | . . . Piercing . | . . . Sneak Attacks . | . . . Combat Hostiles . | . . . Follow-up Attacks . | . . . Damage Inflicted 1972 | . 162 1810 Guns 500 | . . 500 Cannons 654 | . . 654 Explosions 818 | . 162 656 Melee . | . . . Ramming . | . . . Kinetic 1154 | . . 1154 Thermal . | . . . Explosive 818 | . 162 656 Electromagnetic . | . . . Impact . | . . . Slashing . | . . . Piercing . | . . . Highest Corruption . | . . . Average Corruption . | . . . Corruption Purged . | . . . Corruption Blocked . | . . . Overload Shots . | . . . Overflow Damage 53 | . 4 49 Projectiles 3 | . . 3 Explosions 50 | . 4 46 Melee . | . . . Knockbacks 11 | . . 11 Impact . | . . . Kinetic 11 | . . 11 Secondary . | . . . Self-Inflicted Damage 160 | . . 160 Shots 4 | . . 4 Rammed . | . . . Targets Rammed . | . . . Kicked . | . . . Crushed . | . . . Highest Temperature . | . . . Average Temperature . | . . . Received Heat Transfer 159 | . . 159 Siege Activations . | . . . Martial Activations . | . . . Shielding Activations . | . . . Robots Disrupted . | . . . Combat Hostiles . | . . . Robots Corrupted . | . . . Combat Hostiles . | . . . Parts Fried . | . . . Impact Corruptions . | . . . Robots Melted . | . . . Combat Hostiles . | . . . Parts Melted . | . . . Heat Transferred . | . . . Parts Sabotaged . | . . . Parts Stolen . | . . . Parts Stripped . | . . . Power Chain Reactions . | . . . Alert | -11 -10 -10 ------- Run | Yrd Mat Sub Maximum Alert Level . | . . . Low Security (%) 100 | 100 100 . Level 1 . | . . . Level 2 . | . . . Level 3 . | . . . Level 4 . | . . . Level 5 . | . . . High Security . | . . . Max Security . | . . . Peak Influence 74 | . 74 . Initial . | . . . Average 14 | . 17 . Influence Increases 289 | . 89 200 Destroy 0b10 Robot/C 220 | . 60 160 Destroy Leader 20 | . 10 10 Successful Hack 5 | . 5 . Destroy Structure 14 | . 14 . Lose Combat Pursuer 30 | . . 30 Influence Decreases 289 | . 89 200 Time Decay 203 | . 89 114 Lost Part 86 | . . 86 Squads Dispatched 2 | . 2 . Investigation . | . . . Extermination . | . . . Reinforcement 2 | . 2 . Assault . | . . . Garrison . | . . . Intercept . | . . . Searches Triggered . | . . . Construction Impeded . | . . . Haulers Reinforced . | . . . Active Scanning Responses . | . . . Cargo Convoy Interrupts . | . . . Stealth | -11 -10 -10 --------- Run | Yrd Mat Sub Distress Signals . | . . . Communications Jammed . | . . . Distress Signals . | . . . Times Spotted 30 | . 5 25 Peak Tracking Total 6 | . 3 6 Tactical Retreats 1 | . . 1 Traps | -11 -10 -10 ------- Run | Yrd Mat Sub Traps Triggered 2 | . 2 . Indirectly . | . . . Trap Hack Attempts . | . . . Triggered . | . . . Disarmed . | . . . Reprogrammed . | . . . Reused . | . . . Traps Extracted . | . . . Installed . | . . . Triggered . | . . . Machines | -11 -10 -10 ---------- Run | Yrd Mat Sub Machines Disabled . | . . . Max in Single Turn . | . . . Machines Repaired . | . . . Machines Dismantled . | . . . Machines Sabotaged . | . . . Overloaded Fab Kills . | . . . Hacking | -11 -10 -10 --------- Run | Yrd Mat Sub Machines Accessed 1 | . 1 . Terminals 1 | . 1 . Fabricators . | . . . Repair Stations . | . . . Recycling Units . | . . . Scanalyzers . | . . . Garrison Access . | . . . Total Hacks 2 | . 2 . Successful 2 | . 2 . Failed . | . . . Catastrophic . | . . . Database Lockouts . | . . . Manual 1 | . 1 . Terminals 2 | . 2 . Fabricators . | . . . Repair Stations . | . . . Recycling Units . | . . . Scanalyzers . | . . . Garrison Access . | . . . Terminal Hacks 1 | . 1 . Hauler Manifests 1 | . 1 . Fabricator Hacks . | . . . Repair Station Hacks . | . . . Recycling Unit Hacks . | . . . Scanalyzer . | . . . Garrison Access Hacks . | . . . Unauthorized Hacks 1 | . 1 . Terminals 1 | . 1 . Botnet 1 | . 1 . Fabricators . | . . . Repair Stations . | . . . Recycling Units . | . . . Scanalyzers . | . . . Garrison Access . | . . . Data Cores Recovered . | . . . Used . | . . . Hacking Detections 1 | . 1 . Full Trace Events . | . . . Feedback Events . | . . . Feedback Blocked . | . . . Robot Schematics Acquired . | . . . Robots Built . | . . . Authchips . | . . . Time . | . . . Total Robot Build Rating . | . . . Part Schematics Acquired . | . . . Parts Built . | . . . Authchips . | . . . Time . | . . . Total Part Build Rating . | . . . Part Studies Acquired . | . . . Parts Repaired . | . . . Time . | . . . Parts Recycled . | . . . Recycled Matter . | . . . Retrieved Matter . | . . . Retrieved Components . | . . . Parts Scanalyzed . | . . . Part Schematics Acquired . | . . . Parts Damaged . | . . . Bothacking | -11 -10 -10 ------------ Run | Yrd Mat Sub Used RIF Installer . | . . . Robots Hacked . | . . . Non-combat . | . . . Combat . | . . . Robot Hacks Applied . | . . . Relay Couplers Released . | . . . Fabnet Peak Effective % . | . . . Robots Rewired . | . . . Allies Hacked . | . . . Hacks Repelled . | . . . Allies | -11 -10 -10 -------- Run | Yrd Mat Sub Total Allies . | . . . Largest Group . | . . . Highest-Rated Group . | . . . Highest-Rated Ally . | . . . Total Orders . | . . . Ally Attacks . | . . . Total Damage . | . . . Kills . | . . . Allies Corrupted . | . . . Allies Melted . | . . . Intel | -11 -10 -10 ------- Run | Yrd Mat Sub Active Infowar (turns) 257 | . 250 7 Sensors 257 | . 250 7 Robot Analysis Total . | . . . Derelict Logs Recovered . | . . . Drone Launches . | . . . Drone Recoveries . | . . . Exploration | -11 -10 -10 ------------- Run | Yrd Mat Sub Turns Passed 1163 | 72 360 731 Spaces Moved 678 | 43 212 423 Core 22 | 22 . . Treads 343 | 21 212 110 Legs 313 | . . 313 Wheels . | . . . Hover . | . . . Flight . | . . . Fastest Speed 50 | 50 160 120 Average Speed 140 | 144 160 130 Slowest Speed 200 | 200 160 160 Overloaded Moves . | . . . Propulsion Burnouts . | . . . Robots Hopped . | . . . Potential Cave-ins . | . . . Cave-ins Triggered . | . . . Exploration Rate (%) 19 | 5 25 29 Regions Visited 2 Branch Regions 1 Pre-discovered Areas . | . . . Known Exits Taken . | . . . Unknown Exits Taken 2 | 1 1 . Scrap Searched . | . . . Spaces Dug . | . . . Terrain Destroyed 31 | . 14 17 Melee . | . . . Projectile . | . . . AOE 31 | . 14 17 Terrain Rammed . | . . . Walls Destroyed . | . . . Machines Disabled . | . . . Actions | -11 -10 -10 --------- Run | Yrd Mat Sub Total 793 | 50 227 516 Wait 11 | . 2 9 Move 676 | 42 211 423 Hop . | . . . Pick Up 11 | 2 4 5 Fast Attach 13 | 6 . 7 Attach 8 | . 1 7 Detach 3 | . . 3 Swap 9 | . 5 4 Drop 10 | . 1 9 Fire 52 | . 3 49 Melee . | . . . Ram . | . . . Kick . | . . . Crush . | . . . Escape Stasis . | . . . Rewire . | . . . Trap . | . . . Miscellaneous . | . . . Route ------- -11/Scrapyard -10/Materials -10/Subcaves (discovered 2 exits: [*Mat] / [*Rec]) History --------- Turn | Location | Event 25 | -11/Scrapyard | Discovered new exit (range 14) 73 | -11/Scrapyard | Entered Materials 310 | -10/Materials | Build established: Mutant 425 | -10/Materials | Discovered new exit (range 6) 433 | -10/Materials | Entered Subcaves 502 | -10/Subcaves | Discovered new exit (range 10) 631 | -10/Subcaves | Ambushed by swarm of Subdwellers 670 | -10/Subcaves | Core integrity fell below 50% 693 | -10/Subcaves | Lost 4 parts (1p1n1u1w) 693 | -10/Subcaves | Lost 4 allies 726 | -10/Subcaves | Discovered new exit (range 15) 989 | -10/Subcaves | Build established: Scavenger-Mutant 1129 | -10/Subcaves | Ambushed by Subdweller buried in earth 1146 | -10/Subcaves | Ambushed by Subdweller buried in earth 1146 | -10/Subcaves | Ambushed by Subdweller buried in earth 1159 | -10/Subcaves | Core integrity fell below 20% 1164 | -10/Subcaves | Destroyed self with Grenade Launcher Last Messages --------------- 01091_ S-10 Pest destroyed. 01091_ Destroyed Flight Unit. 01091_ S-10 Pest destroyed. 01100_ Dropped Sub. Laser. 01101_ Acquired Lgt. Assault Rifle. 01103_ Lgt. Ion Engine fries itself beyond repair. 01108_ Acquired 25 matter. 01116_ 98-7VD(R): "ECOKILL!" 01130_ 13-TJL(R): "FREEEEDUMB!" 01132_ Lgt. Assault Rifle destroyed. 01142_ 13-TJL(R) destroyed. 01145_ Acquired 2 matter. 01146_ Carbon-fiber Leg destroyed. 01146_ Assault Rifle destroyed. 01147_ W3-M9B(R): "ARGHSUB!" 01147_ C5-HMZ(R): "FREEEEDUMB!" 01152_ Sub. Machine Gun destroyed. 01152_ Ion Engine destroyed. 01156_ Carbon-fiber Leg destroyed. 01158_ C5-HMZ(R) destroyed. Map ----- +----------------------------------------------------+ | ?????????????????????????????????????????????????? | | ?????????????????????????????????????????????????? | | ?????????????????????????????????????????????????? | | ?????????????????????????????????????????????????? | | ?????????????????????????????????????????????????? | | ?????????????????????????????????????????????????? | | ?????????????????????????????????????????????????? | | ?????????????????????????????????????????????????? | | ?????????????????????????????????????????????????? | | ?????????????????????????????????????????????????? | | ?????????????????????????????????????????????????? | | ??????????????????????????????????????????####???? | | ??????????????????????????????????????????# "##?? | | ??????????????????????????????????????????#""" ### | | ???????????????????????????????????????????#"" # | | ????????????????????????????????????????????#" # | | ?????????????????????????????????????????????# # | | ?????????????????????????????????????????????# | | ??????????????????????????????????????????#### " | | ??????????????????????????###????????????##"" | | ???????????????????####### ###??????????#"" | | ???????????????????# #??????????#"" | | ???????????????????# ##?????????## | | ???????????????????# #?????????## | | ?????????????##????# =[ #?????????# | | ?????????????# ???# !%@ ##?????????# ##### | | ??????????????# ## R #??????????# ##?### | | ??????????????# #?????????# #?## | | ?????????????# ####??????# #?# | | ?????????????# ##?????## #?## | | ????????????# " "## ##?????####?# | | ????????????? " #?#" ####???????##" | | ????????????? "" ""??# #??????## | | ????????????? " ""???# #??????# | | ?????????????? ""?????# # #??????# | | ??????????????????????# #????### | | ??????????????????????# [ ## ##????# | | ???????????????????""" # # ##????## | | ??????????????????"""""" ### #?????#### | | ??????????????????"" ## ## ## ##????????" | | ??????????????????"" # ]*### ## #???###?## | | ??????????????????"##### #?# ## #### ### | | ??????????????????????? ?# #### ## ## | | ?????????????????????? ?# #?# #?# | | ????????????????????? ? ##?# #?## | | ????????????????????? ??# #??## | | ????????????????????# # # ?## ##### | | ????????????????????# | | ????????????????????#### | | ???????????????????????####### ###### ## | +----------------------------------------------------+ Best States ------------- Heat Dissipation 25 Coolant Potential 50 Energy Generation 15 Energy Capacity 250 Matter Stores 300 Matter Capacity 300 Sight Range 16 Robot Scan Range 14 Terrain Scan Density 10 Armor Coverage 800 Evasion (%) 55 Recoil Reduction 2 Item Schematics ----------------- None Robot Schematics ------------------ None Fabricated ------------ Nothing Repaired ---------- Nothing Studied --------- None Alien Tech Used ----------------- None Achievements -------------- None Challenges ------------ None Game ------ Seed SegregatorShadeFacilitator Manual? 0 Play Time 00:12:32 Cumulative 125.6 hours Start 2026.04.01 @ 11:07:01 End 2026.04.01 @ 11:19:20 Sessions 1 Manual Loads 0 Difficulty Rogue Special Mode None Game No. 120 Rogue 75 Adventurer 45 Explorer 0 Win Type - Total 3 Types 2/0/0/1/0/0/0/0/0/0 Lore% 68 Gallery% 57 Achievement% 42 Wizard Run 0 Options --------- Layout 0 ASCII 0 Keyboard 1 Movement Numpad Keybinds 0 Fullscreen 1 Font 24/Smallcaps Map View 76x50 Zoom Use 0% Tactical HUD 1 Map Filters NONE Filters NONE Steam 1 RUN: e33041b5-ea35-45b5-bbd6-99d42b83c145